[Event "106th British-ch Major 2019"]
[Site "Torquay"]
[Date "2019.07.28"]
[Round "2.11"]
[White "Liu, Jack"]
[Black "Hagesaether, Arne"]
[Result "0-1"]
[ECO "B12"]
[WhiteElo "1259"]
[BlackElo "2046"]
[Annotator "NA RC"]
[PlyCount "128"]
[EventDate "2019.07.27"]
[EventType "swiss"]
[EventCountry "GBR"]
[SourceTitle "playchess.com"]
[Source "ChessBase"]
[SourceQuality "1"]
[TimeControl "40/5400+30:1800+30"]

1. e4 {[%emt 0:00:00]} c6 {[%emt 0:02:11]} 2. d4 {[%emt 0:00:10]} d5 {[%emt 0:00:23]} 3. e5 {[%emt 0:00:35]} Bf5 {[%emt 0:01:04]} 4. Nd2 {[%emt 0:00:57]} e6 {[%emt 0:01:06]} 5. Nb3 {[%emt 0:00:14]} Nd7 {[%emt 0:01:25]} 6. Nf3 {[%emt 0:01:22]} h6 {[%emt 0:01:11]} 7. Be2 {[%emt 0:00:26]} Ne7 {[%emt 0:01:01]} 8. O-O {[%emt 0:00:18]} Nc8 {[%emt 0:00:40]} 9. c3 {[%emt 0:07:58]} Be7 {[%emt 0:00:33]} 10. Bf4 {[%emt 0:01:37]} a6 {[%emt 0:02:18]} 11. a4 {[%emt 0:04:34]} Na7 {[%emt 0:04:50]} 12. Re1 {[%emt 0:03:06]} Rc8 {[%emt 0:02:55]} 13. h3 {[%emt 0:05:47]} c5 {[%emt 0:05:13]} 14. dxc5 {[%emt 0:07:36]} Nxc5 {[%emt 0:05:48]} 15. Nxc5 {[%emt 0:03:09]} Bxc5 {[%emt 0:00:44]} 16. Nd4 {[%emt 0:09:41]} Be4 {[%emt 0:08:59]} 17. Bf3 {[%emt 0:04:22]} Bxf3 {[%emt 0:03:50]} 18. Nxf3 {[%emt 0:01:55]} O-O {[%emt 0:02:38]} 19. Qd2 {[%emt 0:02:42]} Re8 {[%emt 0:11:00]} 20. Nh2 {[%emt 0:15:21]} h5 {[%emt 0:07:08]} 21. Bg5 {[%emt 0:07:40]} Be7 {[%emt 0:01:12]} 22. Bxe7 {[%emt 0:00:03]} Qxe7 {[%emt 0:00:32]} 23. Qe2 {[%emt 0:01:20]} Qg5 {[%emt 0:06:32]} 24. Nf3 {[%emt 0:00:46]} Qh6 {[%emt 0:00:37]} 25. Qe3 {[%emt 0:01:11]} Qxe3 {[%emt 0:04:24]} 26. Rxe3 {[%emt 0:00:02]} Rc7 {[%emt 0:04:30]} 27. Nd2 {[%emt 0:07:45]} Nc6 {[%emt 0:02:53]} 28. Kf1 {[%emt 0:01:49]} f6 {[%emt 0:01:59]} 29. exf6 {[%emt 0:00:28]} gxf6 {[%emt 0:00:09]} 30. Rae1 {[%emt 0:01:20]} Kf7 {[%emt 0:01:08]} 31. f4 {[%emt 0:01:39]} b5 {[%emt 0:03:57]} 32. axb5 {[%emt 0:00:35]} axb5 {[%emt 0:00:06]} 33. Nb3 {[%emt 0:01:23]} b4 {[%emt 0:03:50]} 34. g3 {[%emt 0:04:58]} Rce7 {[%emt 0:01:17]} 35. Nd4 {[%emt 0:00:42]} Nxd4 {[%emt 0:02:18]} 36. cxd4 {[%emt 0:00:03]} Rc7 {[%emt 0:03:30]} 37. f5 {[%emt 0:00:48]} Rc4 {[%emt 0:01:15]} 38. fxe6+ {[%emt 0:00:28]} Ke7 {[%emt 0:00:06]} 39. Rd1 {[%emt 0:01:17]} Rec8 {[%emt 0:00:14]} 40. Red3 {[%emt 0:00:54]} Kxe6 {[%emt 0:01:06]} 41. Kf2 {[%emt 0:30:30]} Kd6 {[%emt 0:32:34]} 42. Kf3 {[%emt 0:00:48]} Re8 {[%emt 0:00:47]} 43. Kf4 {[%emt 0:01:14]} Rc2 {[%emt 0:00:00]} 44. R1d2 {[%emt 0:00:00]} Re2 {[%emt 0:00:00]} 45. Rxe2 {[%emt 0:00:00]} Rxe2 {[%emt 0:00:00]} 46. Rb3 {[%emt 0:00:00]} Re4+ {[%emt 0:00:00]} 47. Kf5 {[%emt 0:00:00]} Rxd4 {[%emt 0:00:00]} 48. Kxf6 {[%emt 0:00:00]} Kc5 {[%emt 0:00:00]} 49. Kg5 {[%emt 0:00:00]} Kc4 {[%emt 0:00:00]} 50. Rf3 {[%emt 0:00:00]} Rd3 {[%emt 0:00:00]} 51. Rf4+ {[%emt 0:00:00]} d4 {[%emt 0:00:00]} 52. Kxh5 {[%emt 0:00:00]} Rxg3 {[%emt 0:00:00]} 53. Kh4 {[%emt 0:00:00]} Rg2 {[%emt 0:00:00]} 54. b3+ {[%emt 0:00:00]} Kc3 {[%emt 0:00:00]} 55. Rf3+ {[%emt 0:00:00]} d3 {[%emt 0:00:00]} 56. Kh5 {[%emt 0:00:00]} Kc2 {[%emt 0:00:00]} 57. h4 {[%emt 0:00:00]} d2 {[%emt 0:00:00]} 58. Rf1 {[%emt 0:00:00]} d1=Q+ {[%emt 0:00:00]} 59. Rxd1 {[%emt 0:00:00]} Kxd1 {[%emt 0:00:00]} 60. Kh6 {[%emt 0:00:00]} Kc2 {[%emt 0:00:00]} 61. h5 {[%emt 0:00:00]} Kxb3 {[%emt 0:00:00]} 62. Kh7 {[%emt 0:00:00]} Kc2 {[%emt 0:00:00]} 63. h6 {[%emt 0:00:00]} b3 {[%emt 0:00:00]} 64. Kh8 {[%emt 0:00:00]} Rh2 {[%emt 0:00:00]} 0-1

[Event "106th British-ch Major 2019"]
[Site "Torquay"]
[Date "2019.07.28"]
[Round "2.12"]
[White "Payne, Matthew J"]
[Black "Robertson, Jim"]
[Result "1-0"]
[ECO "B12"]
[WhiteElo "2168"]
[BlackElo "1580"]
[Annotator "NA"]
[PlyCount "39"]
[EventDate "2019.07.27"]
[EventType "swiss"]
[EventCountry "GBR"]
[SourceTitle "playchess.com"]
[Source "ChessBase"]
[SourceQuality "1"]
[TimeControl "40/5400+30:1800+30"]

1. e4 {[%emt 0:00:00]} c6 {[%emt 0:00:00]} 2. d4 {[%emt 0:00:00]} d5 {[%emt 0:00:00]} 3. e5 {[%emt 0:00:00]} c5 {[%emt 0:00:09]} 4. dxc5 {[%emt 0:00:01]} e6 {[%emt 0:00:24]} 5. a3 {[%emt 0:00:22]} a5 {[%emt 0:03:05]} 6. Be3 {[%emt 0:00:37]} Qc7 {[%emt 0:01:40]} 7. Nc3 {[%emt 0:05:24]} Bd7 {[%emt 0:02:31]} 8. b4 {[%emt 0:08:34]} Qxe5 {[%emt 0:04:38]} 9. Nge2 {[%emt 0:00:46]} Qc7 {[%emt 0:04:35]} 10. Nd4 {[%emt 0:07:24]} b6 {[%emt 0:04:19]} 11. Ncb5 {[%emt 0:04:04]} Qb7 {[%emt 0:00:23]} 12. cxb6 {[%emt 0:00:10]} Na6 {[%emt 0:05:44]} 13. Nb3 {[%emt 0:04:59]} axb4 {[%emt 0:05:20]} 14. Na5 {[%emt 0:00:13]} Qb8 {[%emt 0:00:08]} 15. b7 {[%emt 0:00:37]} Ra7 {[%emt 0:05:01]} 16. Nxa7 {[%emt 0:01:40]} bxa3 {[%emt 0:00:30]} 17. c3 {[%emt 0:02:30]} Qc7 {[%emt 0:03:10]} 18. Bxa6 {[%emt 0:01:06]} Qxc3+ {[%emt 0:00:07]} 19. Bd2 {[%emt 0:00:19]} Qe5+ {[%emt 0:00:09]} 20. Be2 {[%emt 0:00:10]} 1-0

[Event "106th British-ch Major 2019"]
[Site "Torquay"]
[Date "2019.07.28"]
[Round "2.13"]
[White "Miller, Dominic"]
[Black "Tombolis, Christopher"]
[Result "1-0"]
[ECO "B76"]
[WhiteElo "2140"]
[BlackElo "1883"]
[Annotator "NA"]
[PlyCount "93"]
[EventDate "2019.07.27"]
[EventType "swiss"]
[EventCountry "GBR"]
[SourceTitle "playchess.com"]
[Source "ChessBase"]
[SourceQuality "1"]
[TimeControl "40/5400+30:1800+30"]

1. e4 {[%emt 0:00:00]} c5 {[%emt 0:00:00]} 2. Nf3 {[%emt 0:00:00]} Nc6 {[%emt 0:00:00]} 3. d4 {[%emt 0:00:00]} cxd4 {[%emt 0:00:22]} 4. Nxd4 {[%emt 0:00:00]} g6 {[%emt 0:00:23]} 5. Nc3 {[%emt 0:00:00]} Bg7 {[%emt 0:00:08]} 6. Be3 {[%emt 0:00:00]} Nf6 {[%emt 0:00:12]} 7. Bc4 {[%emt 0:00:05]} O-O {[%emt 0:00:16]} 8. Bb3 {[%emt 0:00:02]} d6 {[%emt 0:00:27]} 9. f3 {[%emt 0:00:26]} Bd7 {[%emt 0:00:13]} 10. h4 {[%emt 0:01:00]} Nxd4 {[%emt 0:06:24]} 11. Bxd4 {[%emt 0:00:08]} b5 {[%emt 0:00:29]} 12. Qd2 {[%emt 0:16:13]} h5 {[%emt 0:09:04]} 13. g4 {[%emt 0:32:14]} hxg4 {[%emt 0:01:46]} 14. h5 {[%emt 0:02:49]} Nxh5 {[%emt 0:12:48]} 15. Bxg7 {[%emt 0:00:36]} Kxg7 {[%emt 0:01:59]} 16. Rxh5 {[%emt 0:00:04]} Rh8 {[%emt 0:00:27]} 17. Rxh8 {[%emt 0:00:20]} Qxh8 {[%emt 0:00:10]} 18. O-O-O {[%emt 0:00:24]} gxf3 {[%emt 0:00:57]} 19. Qd4+ {[%emt 0:06:17]} Kg8 {[%emt 0:01:08]} 20. Qd5 {[%emt 0:04:46]} Qh6+ {[%emt 0:00:25]} 21. Kb1 {[%emt 0:00:34]} Rf8 {[%emt 0:00:12]} 22. e5 {[%emt 0:12:35]} Bg4 {[%emt 0:01:02]} 23. exd6 {[%emt 0:04:34]} exd6 {[%emt 0:01:47]} 24. Qd4 {[%emt 0:06:03]} Bh5 {[%emt 0:18:44]} 25. Ne4 {[%emt 0:03:58]} Qg7 {[%emt 0:04:10]} 26. Nf6+ {[%emt 0:00:53]} Kh8 {[%emt 0:00:08]} 27. Qf4 {[%emt 0:02:52]} f2 {[%emt 0:02:28]} 28. Rh1 {[%emt 0:01:30]} a5 {[%emt 0:03:55]} 29. Qxf2 {[%emt 0:00:08]} a4 {[%emt 0:00:30]} 30. Qf3 {[%emt 0:01:23]} Qh6 {[%emt 0:01:32]} 31. Nxh5 {[%emt 0:00:35]} axb3 {[%emt 0:00:17]} 32. Nf6 {[%emt 0:00:26]} bxc2+ {[%emt 0:00:05]} 33. Kxc2 {[%emt 0:00:28]} Rc8+ {[%emt 0:00:22]} 34. Kd3 {[%emt 0:00:11]} Qxh1 {[%emt 0:00:12]} 35. Qxh1+ {[%emt 0:00:03]} Kg7 {[%emt 0:00:06]} 36. Ng4 {[%emt 0:00:43]} Rh8 {[%emt 0:00:14]} 37. Qd5 {[%emt 0:00:25]} Rh3+ {[%emt 0:00:18]} 38. Kd2 {[%emt 0:00:12]} f5 {[%emt 0:00:12]} 39. Qd4+ {[%emt 0:00:10]} Kf7 {[%emt 0:00:11]} 40. Qf6+ {[%emt 0:00:07]} Ke8 {[%emt 0:00:06]} 41. Qxg6+ {[%emt 0:30:05]} Kd7 {[%emt 0:30:10]} 42. Qxf5+ {[%emt 0:00:07]} Kc7 {[%emt 0:00:13]} 43. Qf7+ {[%emt 0:00:13]} Kc6 {[%emt 0:00:09]} 44. Ne5+ {[%emt 0:00:16]} Kb6 {[%emt 0:00:20]} 45. Qf2+ {[%emt 0:00:44]} Ka6 {[%emt 0:00:07]} 46. Nd7 {[%emt 0:00:10]} Kb7 {[%emt 0:00:13]} 47. Qg2+ {[%emt 0:00:11]} 1-0

[Event "106th British-ch Major 2019"]
[Site "Torquay"]
[Date "2019.07.28"]
[Round "2.14"]
[White "Camp, Imogen Al"]
[Black "Price, Gwilym"]
[Result "1/2-1/2"]
[ECO "E99"]
[WhiteElo "1850"]
[BlackElo "2138"]
[Annotator "NA"]
[PlyCount "72"]
[EventDate "2019.07.27"]
[EventType "swiss"]
[EventCountry "GBR"]
[SourceTitle "playchess.com"]
[Source "ChessBase"]
[SourceQuality "1"]
[TimeControl "40/5400+30:1800+30"]

1. d4 {[%emt 0:00:00]} Nf6 {[%emt 0:00:08]} 2. c4 {[%emt 0:00:00]} g6 {[%emt 0:00:00]} 3. Nc3 {[%emt 0:00:00]} Bg7 {[%emt 0:00:00]} 4. e4 {[%emt 0:00:00]} d6 {[%emt 0:00:00]} 5. Nf3 {[%emt 0:00:00]} O-O {[%emt 0:00:00]} 6. Be2 {[%emt 0:00:00]} e5 {[%emt 0:00:00]} 7. O-O {[%emt 0:00:00]} Nc6 {[%emt 0:00:00]} 8. d5 {[%emt 0:00:04]} Ne7 {[%emt 0:00:00]} 9. Ne1 {[%emt 0:00:05]} Nd7 {[%emt 0:00:00]} 10. Be3 {[%emt 0:00:14]} f5 {[%emt 0:00:00]} 11. f3 {[%emt 0:00:03]} f4 {[%emt 0:00:00]} 12. Bf2 {[%emt 0:00:03]} g5 {[%emt 0:00:04]} 13. Nd3 {[%emt 0:00:25]} Ng6 {[%emt 0:01:05]} 14. c5 {[%emt 0:01:01]} Nf6 {[%emt 0:00:38]} 15. cxd6 {[%emt 0:02:12]} cxd6 {[%emt 0:00:09]} 16. Rc1 {[%emt 0:00:15]} Rf7 {[%emt 0:01:00]} 17. Nb5 {[%emt 0:04:26]} a6 {[%emt 0:12:23]} 18. Nc3 {[%emt 0:10:04]} h5 {[%emt 0:07:46]} 19. Na4 {[%emt 0:01:35]} g4 {[%emt 0:01:09]} 20. Nb6 {[%emt 0:09:35]} Rb8 {[%emt 0:02:41]} 21. Nxc8 {[%emt 0:00:32]} Rxc8 {[%emt 0:00:03]} 22. fxg4 {[%emt 0:06:54]} Rxc1 {[%emt 0:02:18]} 23. Nxc1 {[%emt 0:00:42]} Nxe4 {[%emt 0:00:39]} 24. gxh5 {[%emt 0:01:58]} Nxf2 {[%emt 0:01:12]} 25. Rxf2 {[%emt 0:02:04]} Nh4 {[%emt 0:01:57]} 26. Bg4 {[%emt 0:04:27]} Nf5 {[%emt 0:02:28]} 27. Qd3 {[%emt 0:04:16]} Rc7 {[%emt 0:03:31]} 28. Nb3 {[%emt 0:07:01]} Ne3 {[%emt 0:01:19]} 29. Be6+ {[%emt 0:05:16]} Kh8 {[%emt 0:00:12]} 30. Qg6 {[%emt 0:15:25]} Qf6 {[%emt 0:05:33]} 31. g3 {[%emt 0:11:44]} Qxg6 {[%emt 0:11:25]} 32. hxg6 {[%emt 0:00:07]} a5 {[%emt 0:02:23]} 33. gxf4 {[%emt 0:03:01]} a4 {[%emt 0:02:42]} 34. Nd2 {[%emt 0:05:28]} Rc1+ {[%emt 0:01:10]} 35. Nf1 {[%emt 0:00:07]} exf4 {[%emt 0:00:49]} 36. Rxf4 {[%emt 0:02:52]} Rxf1+ {[%emt 0:09:20]} 1/2-1/2

[Event "106th British-ch Major 2019"]
[Site "Torquay"]
[Date "2019.07.28"]
[Round "2.15"]
[White "Shaw, Peter"]
[Black "Hilton, Tim"]
[Result "1-0"]
[ECO "D85"]
[WhiteElo "2068"]
[BlackElo "1892"]
[Annotator "NA"]
[PlyCount "57"]
[EventDate "2019.07.27"]
[EventType "swiss"]
[EventCountry "GBR"]
[SourceTitle "playchess.com"]
[Source "ChessBase"]
[SourceQuality "1"]
[TimeControl "40/5400+30:1800+30"]

1. d4 {[%emt 0:00:00]} Nf6 {[%emt 0:00:00]} 2. c4 {[%emt 0:00:00]} g6 {[%emt 0:00:00]} 3. Nc3 {[%emt 0:00:00]} d5 {[%emt 0:00:00]} 4. cxd5 {[%emt 0:00:30]} Nxd5 {[%emt 0:00:00]} 5. e4 {[%emt 0:00:35]} Nxc3 {[%emt 0:00:01]} 6. bxc3 {[%emt 0:00:04]} Bg7 {[%emt 0:00:06]} 7. Be3 {[%emt 0:00:27]} c5 {[%emt 0:00:24]} 8. Rc1 {[%emt 0:01:27]} O-O {[%emt 0:00:29]} 9. d5 {[%emt 0:01:52]} Qa5 {[%emt 0:02:24]} 10. Qd2 {[%emt 0:00:11]} Rd8 {[%emt 0:01:49]} 11. Bd3 {[%emt 0:06:54]} Na6 {[%emt 0:04:28]} 12. Ne2 {[%emt 0:05:36]} Bd7 {[%emt 0:04:54]} 13. O-O {[%emt 0:11:56]} b5 {[%emt 0:05:36]} 14. f4 {[%emt 0:06:31]} c4 {[%emt 0:01:19]} 15. Bb1 {[%emt 0:00:18]} Rac8 {[%emt 0:18:11]} 16. Bd4 {[%emt 0:06:30]} Bg4 {[%emt 0:05:00]} 17. Ng3 {[%emt 0:04:42]} Bxd4+ {[%emt 0:01:37]} 18. Qxd4 {[%emt 0:00:05]} Nc5 {[%emt 0:04:35]} 19. f5 {[%emt 0:03:04]} Nd3 {[%emt 0:03:07]} 20. Bxd3 {[%emt 0:02:51]} cxd3 {[%emt 0:00:04]} 21. Qxd3 {[%emt 0:00:54]} Qxa2 {[%emt 0:00:28]} 22. h3 {[%emt 0:04:36]} Bh5 {[%emt 0:01:11]} 23. Nxh5 {[%emt 0:05:00]} gxh5 {[%emt 0:00:04]} 24. f6 {[%emt 0:07:39]} exf6 {[%emt 0:01:34]} 25. Rxf6 {[%emt 0:00:53]} b4 {[%emt 0:02:21]} 26. Qg3+ {[%emt 0:02:35]} Kf8 {[%emt 0:00:18]} 27. Rxf7+ {[%emt 0:00:51]} Kxf7 {[%emt 0:00:43]} 28. Rf1+ {[%emt 0:00:05]} Ke7 {[%emt 0:00:43]} 29. Qe5+ {[%emt 0:00:09]} 1-0

[Event "106th British-ch Major 2019"]
[Site "Torquay"]
[Date "2019.07.28"]
[Round "2.16"]
[White "Lentzos, Ioannis"]
[Black "Sheerin, Alex"]
[Result "1-0"]
[ECO "B73"]
[WhiteElo "2043"]
[BlackElo "1845"]
[Annotator "NA RC"]
[PlyCount "55"]
[EventDate "2019.07.27"]
[EventType "swiss"]
[EventCountry "GBR"]
[SourceTitle "playchess.com"]
[Source "ChessBase"]
[SourceQuality "1"]
[TimeControl "40/5400+30:1800+30"]

1. e4 {[%emt 0:42:28]} c5 {[%emt 0:00:06]} 2. Nf3 {[%emt 0:00:41]} d6 {[%emt 0:00:12]} 3. d4 {[%emt 0:02:52]} cxd4 {[%emt 0:00:13]} 4. Nxd4 {[%emt 0:00:04]} Nf6 {[%emt 0:00:04]} 5. Nc3 {[%emt 0:00:07]} g6 {[%emt 0:00:06]} 6. Be2 {[%emt 0:08:11]} Bg7 {[%emt 0:00:08]} 7. O-O {[%emt 0:00:14]} O-O {[%emt 0:00:07]} 8. Be3 {[%emt 0:02:12]} Nc6 {[%emt 0:00:52]} 9. Kh1 {[%emt 0:07:21]} Bd7 {[%emt 0:01:59]} 10. f3 {[%emt 0:01:13]} Ne5 {[%emt 0:04:53]} 11. Nd5 {[%emt 0:02:26]} Nxd5 {[%emt 0:05:02]} 12. exd5 {[%emt 0:00:06]} Rc8 {[%emt 0:00:33]} 13. b3 {[%emt 0:02:29]} Qa5 {[%emt 0:09:00]} 14. c4 {[%emt 0:16:35]} h5 {[%emt 0:25:37]} 15. a4 {[%emt 0:02:54]} a6 {[%emt 0:03:15]} 16. h3 {[%emt 0:09:20]} Be8 {[%emt 0:04:38]} 17. f4 {[%emt 0:06:25]} Nd7 {[%emt 0:00:10]} 18. Rb1 {[%emt 0:00:18]} Qc3 {[%emt 0:05:42]} 19. Rf3 {[%emt 0:03:22]} Nf6 {[%emt 0:05:52]} 20. f5 {[%emt 0:07:04]} Bd7 {[%emt 0:02:43]} 21. Bh6 {[%emt 0:04:16]} Ne4 {[%emt 0:08:51]} 22. Bxg7 {[%emt 0:03:36]} Qxf3 {[%emt 0:00:34]} 23. Bxf3 {[%emt 0:01:10]} Nf2+ {[%emt 0:00:08]} 24. Kg1 {[%emt 0:00:16]} Nxd1 {[%emt 0:00:08]} 25. Bxf8 {[%emt 0:00:20]} Nc3 {[%emt 0:01:58]} 26. Rc1 {[%emt 0:00:13]} Na2 {[%emt 0:02:06]} 27. Ra1 {[%emt 0:00:07]} Kxf8 {[%emt 0:00:27]} 28. Rxa2 {[%emt 0:01:16]} 1-0

[Event "106th British-ch Major 2019"]
[Site "Torquay"]
[Date "2019.07.28"]
[Round "2.17"]
[White "Miller, George I"]
[Black "Rice, Chris B"]
[Result "0-1"]
[ECO "A47"]
[WhiteElo "1891"]
[BlackElo "2040"]
[Annotator "NA RC"]
[PlyCount "48"]
[EventDate "2019.07.27"]
[EventType "swiss"]
[EventCountry "GBR"]
[SourceTitle "playchess.com"]
[Source "ChessBase"]
[SourceQuality "1"]
[TimeControl "40/5400+30:1800+30"]

1. d4 {[%emt 0:02:16]} Nf6 {[%emt 0:00:00]} 2. Nc3 {[%emt 0:00:25]} e6 {[%emt 0:03:15]} 3. Bf4 {[%emt 0:02:05]} b6 {[%emt 0:04:38]} 4. e3 {[%emt 0:01:49]} Bb7 {[%emt 0:02:20]} 5. Nf3 {[%emt 0:02:23]} Bb4 {[%emt 0:02:22]} 6. Bd3 {[%emt 0:05:14]} Nd5 {[%emt 0:10:16]} 7. Kd2 {[%emt 0:10:09]} Nxf4 {[%emt 0:13:05]} 8. exf4 {[%emt 0:00:33]} Qf6 {[%emt 0:01:11]} 9. Ke3 {[%emt 0:08:41]} Bxc3 {[%emt 0:01:07]} 10. bxc3 {[%emt 0:00:50]} d6 {[%emt 0:05:36]} 11. Re1 {[%emt 0:04:31]} Nd7 {[%emt 0:02:13]} 12. a4 {[%emt 0:07:41]} a5 {[%emt 0:06:56]} 13. g4 {[%emt 0:14:47]} h6 {[%emt 0:07:43]} 14. h4 {[%emt 0:08:24]} O-O-O {[%emt 0:03:08]} 15. g5 {[%emt 0:01:58]} hxg5 {[%emt 0:00:31]} 16. hxg5 {[%emt 0:00:16]} Qe7 {[%emt 0:00:27]} 17. Kd2 {[%emt 0:01:02]} Rh3 {[%emt 0:09:30]} 18. Be4 {[%emt 0:00:42]} Rdh8 {[%emt 0:01:36]} 19. Qe2 {[%emt 0:02:31]} Nf8 {[%emt 0:10:40]} 20. Rab1 {[%emt 0:03:17]} Qd7 {[%emt 0:01:18]} 21. Bxb7+ {[%emt 0:04:16]} Kxb7 {[%emt 0:00:06]} 22. Rb5 {[%emt 0:00:21]} Qc6 {[%emt 0:01:17]} 23. d5 {[%emt 0:00:40]} exd5 {[%emt 0:00:57]} 24. Nd4 {[%emt 0:00:02]} Qxc3+ {[%emt 0:00:30]} 0-1

[Event "106th British-ch Major 2019"]
[Site "Torquay"]
[Date "2019.07.28"]
[Round "2.18"]
[White "Balaji, Aaravamudhan"]
[Black "Foster, Timothy"]
[Result "0-1"]
[ECO "E94"]
[WhiteElo "2034"]
[BlackElo "1852"]
[Annotator "NA RC"]
[PlyCount "104"]
[EventDate "2019.07.27"]
[EventType "swiss"]
[EventCountry "GBR"]
[SourceTitle "playchess.com"]
[Source "ChessBase"]
[SourceQuality "1"]
[TimeControl "40/5400+30:1800+30"]

1. d4 {[%emt 0:00:00]} Nf6 {[%emt 0:00:00]} 2. c4 {[%emt 0:00:00]} g6 {[%emt 0:00:00]} 3. Nc3 {[%emt 0:00:00]} Bg7 {[%emt 0:00:00]} 4. e4 {[%emt 0:00:00]} d6 {[%emt 0:00:00]} 5. Nf3 {[%emt 0:00:00]} O-O {[%emt 0:00:00]} 6. Be2 {[%emt 0:00:00]} e5 {[%emt 0:00:00]} 7. O-O {[%emt 0:00:01]} Na6 {[%emt 0:00:11]} 8. Be3 {[%emt 0:10:42]} Ng4 {[%emt 0:00:34]} 9. Bg5 {[%emt 0:00:34]} Qe8 {[%emt 0:00:25]} 10. a3 {[%emt 0:10:44]} h6 {[%emt 0:06:39]} 11. Bc1 {[%emt 0:04:03]} f5 {[%emt 0:01:45]} 12. d5 {[%emt 0:07:03]} Nc5 {[%emt 0:03:18]} 13. b4 {[%emt 0:09:31]} Nxe4 {[%emt 0:06:51]} 14. Nxe4 {[%emt 0:03:11]} fxe4 {[%emt 0:00:03]} 15. Ne1 {[%emt 0:08:08]} Nf6 {[%emt 0:04:17]} 16. Nc2 {[%emt 0:07:30]} Bd7 {[%emt 0:23:27]} 17. Ne3 {[%emt 0:04:23]} Kh7 {[%emt 0:04:08]} 18. Bb2 {[%emt 0:06:38]} Qf7 {[%emt 0:04:43]} 19. Qc2 {[%emt 0:11:37]} h5 {[%emt 0:08:44]} 20. h4 {[%emt 0:06:22]} Bh6 {[%emt 0:00:37]} 21. Rad1 {[%emt 0:03:53]} Bxe3 {[%emt 0:04:05]} 22. fxe3 {[%emt 0:00:01]} Bf5 {[%emt 0:01:33]} 23. Bc3 {[%emt 0:03:22]} Qe7 {[%emt 0:03:50]} 24. Be1 {[%emt 0:01:55]} Ng4 {[%emt 0:03:05]} 25. Bxg4 {[%emt 0:01:34]} Bxg4 {[%emt 0:00:06]} 26. Rd2 {[%emt 0:00:12]} Rxf1+ {[%emt 0:00:07]} 27. Kxf1 {[%emt 0:00:01]} Rf8+ {[%emt 0:00:54]} 28. Rf2 {[%emt 0:01:14]} Bf5 {[%emt 0:04:11]} 29. c5 {[%emt 0:00:59]} Qxh4 {[%emt 0:03:10]} 30. cxd6 {[%emt 0:00:05]} Qh1+ {[%emt 0:02:52]} 31. Ke2 {[%emt 0:00:00]} Bg4+ {[%emt 0:00:14]} 32. Kd2 {[%emt 0:00:01]} Rxf2+ {[%emt 0:00:12]} 33. Bxf2 {[%emt 0:00:00]} cxd6 {[%emt 0:05:49]} 34. Qc7+ {[%emt 0:00:42]} Kh6 {[%emt 0:01:11]} 35. Be1 {[%emt 0:02:13]} Qxg2+ {[%emt 0:00:23]} 36. Kc1 {[%emt 0:00:48]} Qe2 {[%emt 0:00:54]} 37. Bh4 {[%emt 0:00:31]} Qxe3+ {[%emt 0:01:20]} 38. Kc2 {[%emt 0:00:19]} Qd3+ {[%emt 0:00:19]} 39. Kb2 {[%emt 0:00:34]} Qd4+ {[%emt 0:00:09]} 40. Ka2 {[%emt 0:00:15]} Qxd5+ {[%emt 0:00:11]} 41. Kb2 {[%emt 0:05:42]} Qd2+ {[%emt 0:09:18]} 42. Ka1 {[%emt 0:01:22]} Be6 {[%emt 0:00:54]} 43. Bg5+ {[%emt 0:00:31]} Qxg5 {[%emt 0:00:16]} 44. Kb1 {[%emt 0:00:28]} Qd2 {[%emt 0:00:46]} 45. Qe7 {[%emt 0:00:25]} Bf5 {[%emt 0:07:48]} 46. Qf8+ {[%emt 0:00:52]} Kg5 {[%emt 0:00:06]} 47. Ka1 {[%emt 0:00:23]} e3 {[%emt 0:00:33]} 48. Qe7+ {[%emt 0:00:17]} Kg4 {[%emt 0:00:21]} 49. Qc7 {[%emt 0:00:15]} Qd4+ {[%emt 0:00:02]} 50. Ka2 {[%emt 0:00:04]} e2 {[%emt 0:00:22]} 51. Qc1 {[%emt 0:00:15]} Be6+ {[%emt 0:00:14]} 52. Kb1 {[%emt 0:00:02]} Qd1 {[%emt 0:00:26]} 0-1

[Event "106th British-ch Major 2019"]
[Site "Torquay"]
[Date "2019.07.28"]
[Round "2.19"]
[White "Turner, Max N"]
[Black "Forster, James Connor C"]
[Result "1-0"]
[ECO "D26"]
[WhiteElo "2026"]
[BlackElo "1831"]
[Annotator "NA RC"]
[PlyCount "77"]
[EventDate "2019.07.27"]
[EventType "swiss"]
[EventCountry "GBR"]
[SourceTitle "playchess.com"]
[Source "ChessBase"]
[SourceQuality "1"]
[TimeControl "40/5400+30:1800+30"]

1. d4 {[%emt 0:00:00]} d5 {[%emt 0:00:00]} 2. c4 {[%emt 0:00:00]} dxc4 {[%emt 0:00:14]} 3. e3 {[%emt 0:00:02]} Nf6 {[%emt 0:00:37]} 4. Bxc4 {[%emt 0:00:16]} e6 {[%emt 0:00:33]} 5. Nf3 {[%emt 0:00:21]} a6 {[%emt 0:00:44]} 6. O-O {[%emt 0:00:25]} b5 {[%emt 0:00:57]} 7. Bd3 {[%emt 0:00:32]} Bb7 {[%emt 0:00:37]} 8. a4 {[%emt 0:02:16]} b4 {[%emt 0:02:24]} 9. Nbd2 {[%emt 0:09:25]} c5 {[%emt 0:03:05]} 10. Nc4 {[%emt 0:05:20]} Nc6 {[%emt 0:09:31]} 11. dxc5 {[%emt 0:27:30]} Bxc5 {[%emt 0:01:18]} 12. b3 {[%emt 0:04:21]} O-O {[%emt 0:07:39]} 13. Bb2 {[%emt 0:00:56]} Qe7 {[%emt 0:04:24]} 14. Rc1 {[%emt 0:02:53]} Rac8 {[%emt 0:06:37]} 15. Bb1 {[%emt 0:02:12]} Nb8 {[%emt 0:08:52]} 16. Qc2 {[%emt 0:11:34]} Nbd7 {[%emt 0:01:51]} 17. Ba1 {[%emt 0:14:14]} Be4 {[%emt 0:07:45]} 18. Qb2 {[%emt 0:01:19]} Bxb1 {[%emt 0:02:20]} 19. Rxb1 {[%emt 0:01:02]} Rfd8 {[%emt 0:03:17]} 20. Rbc1 {[%emt 0:05:52]} Qf8 {[%emt 0:04:53]} 21. Qe2 {[%emt 0:01:43]} Qe7 {[%emt 0:06:24]} 22. e4 {[%emt 0:04:16]} h6 {[%emt 0:03:59]} 23. h3 {[%emt 0:00:08]} Nb8 {[%emt 0:03:23]} 24. Nfe5 {[%emt 0:02:07]} Qb7 {[%emt 0:04:52]} 25. Rfe1 {[%emt 0:01:14]} Qa7 {[%emt 0:02:03]} 26. Nf3 {[%emt 0:00:32]} Qe7 {[%emt 0:01:57]} 27. Nfe5 {[%emt 0:00:35]} Qa7 {[%emt 0:01:56]} 28. Red1 {[%emt 0:00:32]} Be7 {[%emt 0:04:51]} 29. Ng4 {[%emt 0:01:07]} Nbd7 {[%emt 0:03:55]} 30. Bd4 {[%emt 0:00:52]} Qb7 {[%emt 0:01:19]} 31. f3 {[%emt 0:01:08]} Nxg4 {[%emt 0:00:47]} 32. hxg4 {[%emt 0:00:07]} Bc5 {[%emt 0:00:29]} 33. Bxc5 {[%emt 0:00:57]} Nxc5 {[%emt 0:00:21]} 34. Nd6 {[%emt 0:00:32]} Qa8 {[%emt 0:01:41]} 35. Nxc8 {[%emt 0:00:07]} Rxc8 {[%emt 0:00:09]} 36. Qc4 {[%emt 0:00:26]} Kh7 {[%emt 0:00:53]} 37. Rc2 {[%emt 0:00:51]} Qa7 {[%emt 0:00:39]} 38. Qd4 {[%emt 0:00:26]} Qe7 {[%emt 0:00:23]} 39. Qe3 {[%emt 0:00:24]} 1-0